Cogmind - Beta 16 @@@ ROGUE MODE // 2026.01.21 @ 16:43:28 Player: CloudSeaKing Result: Self-destructed Performance ------------- Evolutions (1) 500 Regions Visited (2) 400 Robots Destroyed (18) 90 Value Destroyed (423) 423 Prototype IDs (0) 0 Alien Tech Used (0) 0 Bonus (0) 0 TOTAL SCORE: 1413 Bonus ------- None Cogmind --------- Core Integrity 364/400 Matter 263/300 Energy 125/125 System Corruption 0% Temperature Cool (68) Movement Treading (160) Location -9/Materials Parts ------- > --- POWER (1) -------- Light Ion Engine > --- PROPULSION (3) --- Light Treads Light Treads > --- UTILITY (3) ------ Large Storage Unit Seismic Detector Light Armor Plating > --- WEAPON (2) ------- Medium Laser Hammer > --- INVENTORY (15) --- Small Storage Unit Large Matter Pod (0) Sensor Array Seismic Detector Light Armor Plating Light Armor Plating Peak State ------------ > --- POWER ------------ Light Ion Engine > --- PROPULSION ------- Light Treads Light Treads > --- UTILITY ---------- Large Storage Unit Seismic Detector Light Armor Plating > --- WEAPON ----------- Medium Laser Hammer > --- INVENTORY -------- Small Storage Unit Sensor Array Seismic Detector Light Armor Plating Light Armor Plating [Rating: 8] Favorites ----------- Power Light Ion Engine Engine Light Ion Engine Propulsion Light Treads Treads Light Treads Wheel Wheel Utility Seismic Detector Device Seismic Detector Storage Small Storage Unit Protection Light Armor Plating Weapon Assault Rifle Energy Gun Medium Laser Ballistic Gun Assault Rifle Impact Weapon Hammer Build | -11 -10 -9 ------- Run | Yrd Mat Mat Slots Evolved 2 | . . 2 Power . | . . . Propulsion 1 | . . 1 Utility 1 | . . 1 Weapon . | . . . Parts Attached 15 | 8 5 2 Power 3 | 1 2 . Engine 3 | 1 2 . Core . | . . . Reactor . | . . . Propulsion 4 | 3 . 1 Treads 3 | 2 . 1 Leg . | . . . Wheel 1 | 1 . . Hover . | . . . Flight . | . . . Utility 4 | 2 1 1 Device 1 | 1 . . Storage 2 | 1 1 . Processor . | . . . Hackware . | . . . Protection 1 | . . 1 Artifact . | . . . Weapon 4 | 2 2 . Energy Gun 1 | . 1 . Energy Cannon . | . . . Ballistic Gun 2 | 2 . . Ballistic Cannon . | . . . Launcher . | . . . Special Weapon . | . . . Impact Weapon 1 | . 1 . Slashing Weapon . | . . . Piercing Weapon . | . . . Special Melee Weapon . | . . . Unidentified Prototypes . | . . . Parts Lost 5 | . 5 . Power 2 | . 2 . Propulsion 1 | . 1 . Utility . | . . . Weapon 2 | . 2 . Highest Loss Streak 2 | . 2 . To Critical Strikes . | . . . Average Backups 6 | 4 6 5 Power . | . 1 . Propulsion 1 | 3 1 . Utility 3 | . 3 5 Weapon . | . . . Tool/Special . | . . . Unused Backups 8 | . 3 5 Power . | . . . Propulsion 3 | . 3 . Utility 5 | . . 5 Weapon . | . . . Tool/Special . | . . . Average Slot Usage (%) 96 | . 99 87 Engine 12 | . 13 11 Treads 26 | . 28 22 Device 13 | . 14 11 Storage 13 | . 14 11 Protection 2 | . . 10 Energy Gun 5 | . 4 11 Ballistic Gun 17 | . 22 . Impact Weapon 3 | . 1 11 Peak Build Rating 8 | 7 7 8 Average Rating 6 | 5 6 7 On Entrance 4 | . 7 6 Avg Prop Armor Cover (%) . | . . . Naked Turns . | . . . Heaviest Build 31 | 12 28 31 Greatest Support 40 | 40 40 40 Greatest Overweight (x) 1 | . 1 . Average Overweight (x) . | . . . Largest Inventory Capacity 15 | 8 15 15 Average Capacity 9 | 7 8 15 Most Carried 8 | 7 8 6 Average Carried 6 | 4 6 5 Final Capacity 15 | 8 15 15 Final Carried 7 | 7 7 6 Class Distribution -------------------- 100% | Mutant Dominant Class ---------------- Mutant | -10/Materials Mutant | -9/Materials Resources | -11 -10 -9 ----------- Run | Yrd Mat Mat Matter Collected 534 | 284 250 . Remotely . | . . . Salvage Created 581 | 41 495 45 Parts 32 | 3 29 . Haulers Intercepted 1 | . 1 . Recyclers Shooed 1 | 1 . . Parts Field Recycled . | . . . Retrieved Matter . | . . . Parts Self-Destructed . | . . . Prevented . | . . . Parts Restored . | . . . Kills | -11 -10 -9 ------- Run | Yrd Mat Mat Combat Hostiles Destroyed 12 | . 11 1 Guns 12 | . 11 1 Classes Destroyed 6 | 1 5 . Tunneler 2 | 2 . . Hauler 1 | . 1 . Operator 2 | . 2 . Watcher 1 | . 1 . Swarmer 3 | . 3 . Grunt 9 | . 8 1 Best Kill Streak 3 | 1 3 1 Combat Bots Only 2 | . 2 1 Max Kills in Single Turn 1 | 1 1 1 Gunslinging . | . . . Exploded . | . . . Melee . | . . . Uniques/NPCs Destroyed . | . . . Combat | -11 -10 -9 -------- Run | Yrd Mat Mat Hostile Shots Fired 109 | . 98 11 Missed 30 | . 28 2 Hits 79 | . 70 9 Melee 4 | . . 4 Projectile 75 | . 70 5 Damage Taken 897 | . 749 148 Core 141 | . 105 36 Absorbed by Shields . | . . . Core Remaining (%) 79 | 100 58 . Volleys Fired 92 | 9 70 13 Largest 2 | 2 2 1 Hottest 70 | 40 70 50 Shots Fired 159 | 18 128 13 Gun 159 | 18 128 13 Cannon . | . . . Launcher . | . . . Special . | . . . Kinetic 112 | 18 94 . Thermal 47 | . 34 13 Explosive . | . . . Electromagnetic . | . . . Robot Hit Streak 7 | 5 7 6 Robot Miss Streak 6 | 2 6 1 Penetration Max . | . . . Secondary Targets 2 | . 2 . Max Gunslinging Chain 1 | . 1 . Shots Hit Robots 83 | 11 61 11 Core Hits 33 | 4 27 2 Critical Kills . | . . . Critical Parts Destroyed . | . . . Critical Strikes 3 | . 2 1 Burn 3 | . 2 1 Melee Attacks 2 | . . 2 Impact 2 | . . 2 Slashing . | . . . Piercing . | . . . Sneak Attacks . | . . . Combat Hostiles . | . . . Follow-up Attacks . | . . . Damage Inflicted 971 | 112 720 139 Guns 956 | 112 705 139 Cannons . | . . . Explosions . | . . . Melee . | . . . Ramming 15 | . 15 . Kinetic 644 | 112 532 . Thermal 312 | . 173 139 Explosive . | . . . Electromagnetic . | . . . Impact . | . . . Slashing . | . . . Piercing . | . . . Highest Corruption 1 | . 1 . Average Corruption 1 | . 1 . Corruption Purged . | . . . Corruption Blocked . | . . . Effects 1 | . 1 . Energy Discharges 1 | . 1 . Overload Shots . | . . . Overflow Damage . | . . . Projectiles . | . . . Explosions . | . . . Melee . | . . . Knockbacks . | . . . Impact . | . . . Kinetic . | . . . Secondary . | . . . Self-Inflicted Damage . | . . . Shots . | . . . Rammed 4 | . 4 . Targets Rammed 4 | . 4 . Kicked . | . . . Crushed . | . . . Highest Temperature 160 | . 104 160 Average Temperature 45 | . 34 91 Received Heat Transfer 309 | . 279 30 Siege Activations . | . . . Martial Activations . | . . . Shielding Activations . | . . . Robots Disrupted . | . . . Combat Hostiles . | . . . Robots Corrupted . | . . . Combat Hostiles . | . . . Parts Fried 1 | . 1 . Impact Corruptions . | . . . Robots Melted . | . . . Combat Hostiles . | . . . Parts Melted 2 | . 2 . Heat Transferred 1147 | . 666 481 Parts Sabotaged . | . . . Parts Stolen . | . . . Parts Stripped . | . . . Power Chain Reactions . | . . . Alert | -11 -10 -9 ------- Run | Yrd Mat Mat Maximum Alert Level . | . . . Low Security (%) 100 | 100 100 100 Level 1 . | . . . Level 2 . | . . . Level 3 . | . . . Level 4 . | . . . Level 5 . | . . . High Security . | . . . Max Security . | . . . Peak Influence 95 | 5 95 25 Initial 21 | . . 21 Average 16 | . 22 5 Influence Increases 417 | 10 354 53 Destroy 0b10 Robot/C 240 | . 220 20 Destroy 0b10 Robot/NC 30 | 10 20 . Destroy Leader 54 | . 54 . Successful Hack 18 | . . 18 Disable Machine 15 | . 15 . Lose Combat Pursuer 60 | . 45 15 Influence Decreases 402 | 10 303 89 Entered New Map 30 | . . 30 Time Decay 332 | 10 263 59 Lost Part 40 | . 40 . Squads Dispatched 3 | . 3 . Investigation 2 | . 2 . Extermination . | . . . Reinforcement 1 | . 1 . Assault . | . . . Garrison . | . . . Intercept . | . . . Searches Triggered . | . . . Construction Impeded . | . . . Haulers Reinforced . | . . . Active Scanning Responses . | . . . Cargo Convoy Interrupts . | . . . Stealth | -11 -10 -9 --------- Run | Yrd Mat Mat Distress Signals 1 | . 1 . Communications Jammed . | . . . Distress Signals . | . . . Times Spotted 27 | . 24 3 Peak Tracking Total 5 | . 5 3 Tactical Retreats 3 | . 2 1 Traps | -11 -10 -9 ------- Run | Yrd Mat Mat Traps Triggered 2 | . 2 . Indirectly . | . . . Trap Hack Attempts . | . . . Triggered . | . . . Disarmed . | . . . Reprogrammed . | . . . Reused . | . . . Traps Extracted . | . . . Installed . | . . . Triggered . | . . . Machines | -11 -10 -9 ---------- Run | Yrd Mat Mat Machines Disabled 1 | . 1 . Max in Single Turn 1 | . 1 . Machines Repaired . | . . . Machines Dismantled . | . . . Machines Sabotaged . | . . . Overloaded Fab Kills . | . . . Hacking | -11 -10 -9 --------- Run | Yrd Mat Mat Machines Accessed 6 | . 2 4 Terminals 5 | . 2 3 Fabricators . | . . . Repair Stations . | . . . Recycling Units . | . . . Scanalyzers 1 | . . 1 Garrison Access . | . . . Total Hacks 15 | . 4 11 Successful 5 | . . 5 Failed 10 | . 4 6 Catastrophic 2 | . 1 1 Database Lockouts . | . . . Manual 13 | . 4 9 Terminals 13 | . 4 9 Fabricators . | . . . Repair Stations . | . . . Recycling Units . | . . . Scanalyzers 2 | . . 2 Garrison Access . | . . . Terminal Hacks . | . . . Fabricator Hacks . | . . . Repair Station Hacks . | . . . Recycling Unit Hacks . | . . . Scanalyzer 2 | . . 2 Retrieve Study 2 | . . 2 Garrison Access Hacks . | . . . Unauthorized Hacks 3 | . . 3 Terminals 3 | . . 3 Botnet 2 | . . 2 Skim 1 | . . 1 Fabricators . | . . . Repair Stations . | . . . Recycling Units . | . . . Scanalyzers . | . . . Garrison Access . | . . . Data Cores Recovered . | . . . Used . | . . . Hacking Detections 5 | . 2 3 Full Trace Events 1 | . 1 . Feedback Events . | . . . Feedback Blocked . | . . . Robot Schematics Acquired . | . . . Robots Built . | . . . Authchips . | . . . Time . | . . . Total Robot Build Rating . | . . . Part Schematics Acquired . | . . . Parts Built . | . . . Authchips . | . . . Time . | . . . Total Part Build Rating . | . . . Part Studies Acquired 2 | . . 2 Parts Repaired . | . . . Time . | . . . Parts Recycled . | . . . Recycled Matter . | . . . Retrieved Matter . | . . . Retrieved Components . | . . . Parts Scanalyzed . | . . . Part Schematics Acquired . | . . . Parts Damaged . | . . . Bothacking | -11 -10 -9 ------------ Run | Yrd Mat Mat Used RIF Installer . | . . . Robots Hacked . | . . . Non-combat . | . . . Combat . | . . . Robot Hacks Applied . | . . . Relay Couplers Released . | . . . Fabnet Peak Effective % . | . . . Robots Rewired . | . . . Allies Hacked . | . . . Hacks Repelled . | . . . Allies | -11 -10 -9 -------- Run | Yrd Mat Mat Total Allies . | . . . Largest Group . | . . . Highest-Rated Group . | . . . Highest-Rated Ally . | . . . Total Orders . | . . . Ally Attacks . | . . . Total Damage . | . . . Kills . | . . . Allies Corrupted . | . . . Allies Melted . | . . . Intel | -11 -10 -9 ------- Run | Yrd Mat Mat Active Infowar (turns) 1148 | 78 844 226 Seismic 1148 | 78 844 226 Robot Analysis Total . | . . . Derelict Logs Recovered . | . . . Drone Launches . | . . . Drone Recoveries . | . . . Exploration | -11 -10 -9 ------------- Run | Yrd Mat Mat Turns Passed 1238 | 168 844 226 Spaces Moved 534 | 81 339 114 Core 3 | 3 . . Treads 530 | 77 339 114 Legs . | . . . Wheels 1 | 1 . . Hover . | . . . Flight . | . . . Fastest Speed 50 | 50 160 160 Average Speed 159 | 154 160 160 Slowest Speed 240 | 160 240 160 Overloaded Moves . | . . . Propulsion Burnouts . | . . . Robots Hopped . | . . . Potential Cave-ins . | . . . Cave-ins Triggered . | . . . Exploration Rate (%) 21 | 5 44 15 Regions Visited 2 Branch Regions . Pre-discovered Areas . | . . . Known Exits Taken . | . . . Unknown Exits Taken 2 | 1 1 . Scrap Searched . | . . . Spaces Dug . | . . . Terrain Destroyed . | . . . Melee . | . . . Projectile . | . . . AOE . | . . . Terrain Rammed . | . . . Walls Destroyed . | . . . Machines Disabled . | . . . Actions | -11 -10 -9 --------- Run | Yrd Mat Mat Total 763 | 104 518 141 Wait 99 | . 90 9 Move 532 | 80 338 114 Hop . | . . . Pick Up 14 | 6 7 1 Fast Attach 8 | 8 . . Attach 6 | . 4 2 Detach 1 | 1 . . Swap 1 | . 1 . Drop 4 | . 4 . Fire 92 | 9 70 13 Melee 2 | . . 2 Ram . | . . . Kick . | . . . Crush 4 | . 4 . Escape Stasis . | . . . Rewire . | . . . Trap . | . . . Miscellaneous . | . . . Route ------- -11/Scrapyard -10/Materials (discovered 2 exits: *Mat / [*Min]) -9/Materials History --------- Turn | Location | Event 10 | -11/Scrapyard | Discovered new exit (range 15) 169 | -11/Scrapyard | Entered Materials 303 | -10/Materials | Build established: Mutant 665 | -10/Materials | Discovered new exit (range 16) 897 | -10/Materials | Discovered new exit (range 10) 1013 | -10/Materials | Entered another Materials area 1013 | -9/Materials | Evolved 2 slots: Propulsion x1, Utility x1 1239 | -9/Materials | Self-destructed Last Messages --------------- Downloading performance data... Effective improvements: Penalty/2 >>Study(Med. Laser) Identified Med. Laser... Downloading performance data... Effective improvements: +10% accuracy 01109_ Connecting with Terminal... >>Trojan(Botnet) Trojan loaded successfully. Testing... Terminal linked with 1 system. Awaiting botnet instructions. 01222_ G-34 Mercenary suffers critical hit (Burn). 01222_ G-34 Mercenary overheating. 01223_ G-34 Mercenary heat damages Ion Engine. 01223_ G-34 Mercenary overheating. 01228_ G-34 Mercenary destroyed. Map ----- +----------------------------------------------------+ | | | | | | | | | | | | | | | | | | | | | | | | | | | | | | | | | | | | | | | | | ???????????????????#########????????????????????? | | ???????????????????# #????????????????????? | | ???????????????????#! """ #????????????????????? | | ???????????????????# """ #????################# | | ???????????????????# """ #????# + | | ???????????????????# @ ###### """ # | | ???????????????????######b## # """ # | | ????????????????????# % # """ + | | ????????????????????# + ######## | | ????????????????????# # """ #####??? | | ????????????????????# # """ # #??? | | ??????????????#+##### # """ # #??? | | ????????????# + # #??? | | ????????????# ############## #### | | ????????????### ####+#????????????# # | | ??????????????# #? ???????????# # | | ??????????????# ## """ #?????????# # "S | | ??????????????# ## """ #?????????# # "" | | ??????????????# """ ## """ #########?# # " | | ????????????? """ ## # ?# # | | ???????????? """ # """ # # ###+ | | ??????????? ?? # """ # """ # | | ??????????? ??? # ??????"""" + | | ???????????##?????#### # ??????"""" # !! | | ?????????????????????? / ??????"""" # ! | | ?????????????????????? # ??????""" ?# ! | | ?????????????????????? # ?????? ?# | | ?????????????????????? #??????#######+??# | | ???????????????????????????????????????### """ | | ???????????????????????????????????????#"" """ | +----------------------------------------------------+ Best States ------------- Heat Dissipation 28 Energy Generation 10 Energy Capacity 250 Matter Stores 300 Matter Capacity 300 Sight Range 16 Terrain Scan Density 10 Armor Coverage 150 Evasion (%) 40 Recoil Reduction 2 Item Schematics ----------------- None Robot Schematics ------------------ None Fabricated ------------ Nothing Repaired ---------- Nothing Studied --------- Lgt. Treads | -9/Materials | Hacked Med. Laser | -9/Materials | Hacked Alien Tech Used ----------------- None Achievements -------------- None Challenges ------------ None Game ------ Seed ActuatorGreatRailgun Manual? 0 Play Time 00:09:40 Cumulative 33.0 hours Start 2026.01.21 @ 16:35:44 End 2026.01.21 @ 16:43:28 Sessions 1 Manual Loads 0 Difficulty Rogue Special Mode None Game No. 40 Rogue 40 Adventurer 0 Explorer 0 Win Type - Total 0 Types 0/0/0/0/0/0/0/0/0/0 Lore% 19 Gallery% 28 Achievement% 27 Wizard Run 0 Options --------- Layout 1 ASCII 0 Keyboard 0 Movement Arrows Keybinds 0 Fullscreen 2 Font 32/SmallcapsGlow Map View 50x35 Zoom Use 0% Tactical HUD 1 Map Filters NONE Filters NONE Steam 1 RUN: cad5745c-6d4c-4242-87e0-bde5b31294c0